Workbook

Sheet 8K
A1: Men's Cross Country Records
A3: Only races on the schedule run as a member of the MSU Running Club are eligible for records.
A4: ALL-TIME 8K
A5: Rank | C5: Time | D5: Year
A6: 1 | B6: Charles Alexander | C6: 25:40.2 | D6: 2018
A7: 2 | B7: Paolo Guarano | C7: 26:10.0 | D7: 2017
A8: 3 | B8: Eric Loveland | C8: 26:19.0 | D8: 2011
A9: 4 | B9: Adam Terwillegar | C9: 26:22.0 | D9: 2013
A10: =A9+1 -> 5 | B10: Jacob Young | C10: 26:22.4 | D10: 2017
A11: 6 | B11: Kevin Glime | C11: 26:27.3 | D11: 2015
A12: 7 | B12: Billy Brinker | C12: 26:31.4 | D12: 2018
A13: 8 | B13: Justin Waraniak | C13: 26:34.4 | D13: 2015
A14: 9 | B14: Lucas Werner | C14: 26:34.6 | D14: 2017
A15: =A14+1 -> 10 | B15: Colin Riley | C15: 26:39.0 | D15: 2014
A16: 11 | B16: Bennett Prud'homme | C16: 26:47.0 | D16: 2013
A17: 12 | B17: Jack Aman | C17: 26:49.1 | D17: 2018
A18: 13 | B18: Mark Choate | C18: 26:52.8 | D18: 2014
A19: 14 | B19: Tyler Cook | C19: 26:53.7 | D19: 2018
A20: 15 | B20: Riley VanPelt | C20: 27:03.9 | D20: 2018
A21: 16 | B21: Paul Salach | C21: 27:09.0 | D21: 2016
A22: 17 | B22: Garrett Novak | C22: 27:14.9 | D22: 2017
A23: 18 | B23: Mitchell Lanzit | C23: 27:16.0 | D23: 2018
A24: 19 | B24: Wes Diener | C24: 27:18.3 | D24: 2017
A25: 20 | B25: Justin Jones | C25: 27:19.0 | D25: 2009
A26: 21 | B26: Jeff Girbach | C26: 27:22.0 | D26: 2011
A27: =A26+1 -> 22 | B27: Matt Ring | C27: 27:25.0 | D27: 2017
A28: 23 | B28: Christian Heck | C28: 27:29.0 | D28: 2007
A29: 24 | B29: John Wilson | C29: 27:29.0 | D29: 2006
A30: 25 | B30: Connor Doyle | C30: 27:33.0 | D30: 2011
A31: 26 | B31: Mike Jaisle | C31: 27:34.0 | D31: 2011
A32: 27 | B32: Austin Langlinais | C32: 27:44.9 | D32: 2017
A33: 28 | B33: Vicente Herrara | C33: 27:49.0 | D33: 2013
A34: 29 | B34: Trent Johnson | C34: 27:59.5 | D34: 2014
A35: 30 | B35: Adam Izer | C35: 28:08.0 | D35: 2010
A36: 31 | B36: Joe Hegger | C36: 27:54.8 | D36: 2017
A37: 32 | B37: Alex Langdon | C37: 28:00.9 | D37: 2017
A38: 33 | B38: Peter Slotten | C38: 28:06.7 | D38: 2017
A39: 34 | B39: Ryan Garman | C39: 28:08.5 | D39: 2018
A40: 35 | B40: Lucas Bowman | C40: 28:13.0 | D40: 2013
A41: 36 | B41: Nathaniel Ellsworth | C41: 28:13.0 | D41: 2010
A42: 37 | B42: Ryan Canna | C42: 28:13.7 | D42: 2018
A43: 38 | B43: Ryan Grotenrath | C43: 28:16.0 | D43: 2018
A44: 39 | B44: Austin Fillmore | C44: 28:18.6 | D44: 2015
A45: 40 | B45: Alexander Kulpa | C45: 28:21.0 | D45: 2014
A46: =A45+1 -> 41 | B46: Ben Lambert | C46: 28:23.0 | D46: 2016
A47: 42 | B47: Ryan Whinnery | C47: 28:25.7 | D47: 2018
A48: 43 | B48: Jalen Smith | C48: 28:26.9 | D48: 2018
A49: 44 | B49: Matteo Robazza | C49: 28:30.0 | D49: 2017
A50: 45 | B50: Eric Anderson | C50: 28:32.0 | D50: 2011
A51: =A50+1 -> 46 | B51: Andy VanEgmond | C51: 28:34.0 | D51: 2007
A52: 47 | B52: Kodiak Kollmeyer | C52: 28:37.0 | D52: 2011
A53: 48 | B53: Damon King | C53: 28:39.0 | D53: 2010
A54: 49 | B54: Zachary Kuloszewski | C54: 28:40.1 | D54: 2015
A55: 50 | B55: Phillip Valtadoros | C55: 28:41.1 | D55: 2018
A56: 51 | B56: Patrick Frahm | C56: 28:45.0 | D56: 2015
A57: 52 | B57: Alec Wycoff | C57: 28:46.6 | D57: 2018
A58: 53 | B58: Colin Crusoe | C58: 28:47.0 | D58: 2016
A59: 54 | B59: Chase Taylor | C59: 28:47.0 | D59: 2012
A60: 55 | B60: Alec Reilly | C60: 28:51.2 | D60: 2016
A61: 56 | B61: Thomas Brettschneider | C61: 28:55.1 | D61: 2015
A62: 57 | B62: Justin Schenkel | C62: 29:01.0 | D62: 2006
A63: =A62+1 -> 58 | B63: Jacob Broman | C63: 29:02.5 | D63: 2017
A64: 59 | B64: Eddie Roginski | C64: 29:03.0 | D64: 2009
A65: 60 | B65: Alex Miros | C65: 29:04.3 | D65: 2014
A66: 61 | B66: Brendan Murphy | C66: 29:05.0 | D66: 2010
A67: 62 | B67: Jake Wojnicki | C67: 29:08.8 | D67: 2015
A68: 63 | B68: Joe Dandron | C68: 29:12.8 | D68: 2017
A69: 64 | B69: Sean Baddeley | C69: 29:15.0 | D69: 2010
A70: 65 | B70: Andrew Beyer | C70: 29.17.6 | D70: 2018
A71: 66 | B71: Brady Ryan | C71: 29:26.0 | D71: 2012
A72: 67 | B72: Ian Murphy | C72: 29:28.0 | D72: 2010
A73: =A72+1 -> 68 | B73: Ben Fleck | C73: 29:30.0 | D73: 2012
A74: 69 | B74: Jordan Prather | C74: 29:32.0 | D74: 2011
A75: 70 | B75: Collin Goan | C75: 29:32.4 | D75: 2018
A76: 71 | B76: Matthew Wholihan | C76: 29:33.0 | D76: 2018
A77: 72 | B77: Zack Smith | C77: 29:38.5 | D77: 2018
A78: 73 | B78: Ben Richardson | C78: 29:40.1 | D78: 2015
A79: 74 | B79: Nathan Blosser | C79: 29:41.0 | D79: 2014
A80: 75 | B80: Robert Gernhardt | C80: 29:42.0 | D80: 2012
A81: =A80+1 -> 76 | B81: Connor Lockman | C81: 29:45.6 | D81: 2014
A82: 77 | B82: Kristopher Zuhl | C82: 29:47.0 | D82: 2014
A83: 78 | B83: Vincent Marinelli | C83: 29:48.2 | D83: 2018
A84: 79 | B84: Michael Rettschlag | C84: 29:48.6 | D84: 2017
A85: 80 | B85: Michael Brichta | C85: 29:55.7 | D85: 2014
A86: =A85+1 -> 81 | B86: Anthony Mattioli | C86: 29:58.0 | D86: 2012
A87: 82 | B87: Brady Durant | C87: 29:58.0 | D87: 2012
A88: 83 | B88: Phil Baeza | C88: 29:58.0 | D88: 2013
A89: 84 | B89: Alex Cramer | C89: 30:00.0 | D89: 2012
A90: 85 | B90: Matt Sowles | C90: 30.02.0 | D90: 2016
A91: 86 | B91: Rodney Weng | C91: 30:05.0 | D91: 2013
A92: 87 | B92: Jared Babcock | C92: 30.06.0 | D92: 2016
A93: 88 | B93: Tyler Robertson | C93: 30:07.1 | D93: 2017
A94: 89 | B94: Ryan Squanda | C94: 30:09.0 | D94: 2013
A95: 90 | B95: Joe Gaikema | C95: 30:16.7 | D95: 2017
A96: 91 | B96: Fouad Abdole | C96: 30:17.0 | D96: 2013
A97: 92 | B97: Dietrich Hittner | C97: 30:18.1 | D97: 2016
A98: 93 | B98: David Bidwell | C98: 30:21.6 | D98: 2018
A99: 94 | B99: Tommy Mcgowan | C99: 30:22.2 | D99: 2018
A100: 95 | B100: Alec Gillis | C100: 30:25.5 | D100: 2017
A101: 96 | B101: Logan Soldo | C101: 30:27.6 | D101: 2014
A102: 97 | B102: Jack Adams | C102: 30:29.4 | D102: 2015
A103: 98 | B103: Austin Katona | C103: 30:30.0 | D103: 2013
A104: 99 | B104: Jonathan Sollish | C104: 30:33.6 | D104: 2014
A105: 100 | B105: Emory Etienne | C105: 30:34.5 | D105: 2018
A106: 101 | B106: Timmy Christensen | C106: 30:42.0 | D106: 2013
A107: 102 | B107: Joe Whaley | C107: 30:46.6 | D107: 2015
A108: =A107+1 -> 103 | B108: Adam Blaida | C108: 30:48.0 | D108: 2016
A109: 104 | B109: Sergei Kelley | C109: 30:50.2 | D109: 2017
A110: 105 | B110: Sam Kaastra | C110: 30:51.3 | D110: 2017
A111: 106 | B111: Louis Gunzak | C111: 30:55.0 | D111: 2007
A112: 107 | B112: Brayden Swanson | C112: 31:00.9 | D112: 2018
A113: 108 | B113: Brett Roginski | C113: 31:06.0 | D113: 2016
A114: 109 | B114: Bram Parkinson | C114: 31:27.3 | D114: 2015
A115: 110 | B115: Jack Luxem | C115: 31:27.4 | D115: 2018
A116: 111 | B116: Kindred Griffis | C116: 31:48.4 | D116: 2017
A117: 112 | B117: Joel Simpson | C117: 31:48.9 | D117: 2014
A118: =A117+1 -> 113 | B118: AJ Cloutier | C118: 31:53.8 | D118: 2017
A119: 114 | B119: Chris Cashen | C119: 31:59.8 | D119: 2017
A120: 115 | B120: Nick Huard | C120: 32:01.0 | D120: 2016
A121: 116 | B121: Jacob Paciorek | C121: 32:09.0 | D121: 2014
A122: 117 | B122: Steven Smith | C122: 32:13.6 | D122: 2015
A123: 118 | B123: Kristian Wosik | C123: 32:15.0 | D123: 2012
A124: 119 | B124: Ethan Smith | C124: 32:19.0 | D124: 2018
A125: 120 | B125: Justin Hailer | C125: 32:21.7 | D125: 2017
A126: 121 | B126: Greg Vranish | C126: 32:27.0 | D126: 2013
A127: =A126+1 -> 122 | B127: Mitchell Smith | C127: 32:28.0 | D127: 2016
A128: 123 | B128: Zack Lapinski | C128: 32:29.3 | D128: 2017
A129: 124 | B129: Ryan Darnell | C129: 32:55.4 | D129: 2017
A130: 125 | B130: Colten Radl | C130: 32:56.3 | D130: 2018
A131: 126 | B131: Nate Peters | C131: 32:56.7 | D131: 2018
A132: 127 | B132: TJ Krawczyk | C132: 32:57.2 | D132: 2017
A133: 128 | B133: Benjamin Zaleski | C133: 32:59.8 | D133: 2018
A134: 129 | B134: Dean Kuharevicz | C134: 33:02.0 | D134: 2016
A135: 130 | B135: Avciogly Rafael | C135: 33:10.2 | D135: 2015
A136: =A135+1 -> 131 | B136: Erik Van Laeke | C136: 33:14.8 | D136: 2017
A137: 132 | B137: Sean Virden | C137: 33:15.5 | D137: 2015
A138: 133 | B138: Keegan Sullivan | C138: 33:17.7 | D138: 2018
A139: 134 | B139: Christian Marier | C139: 33:18.0 | D139: 2012
A140: 135 | B140: Peter Sculli | C140: 33:19.6 | D140: 2015
A141: =A140+1 -> 136 | B141: Benjamin Iaderosa | C141: 33:22.2 | D141: 2015
A142: 137 | B142: Devin Abb | C142: 33:25.3 | D142: 2017
A143: 138 | B143: Caton Hacker | C143: 33:26.6 | D143: 2015
A144: 139 | B144: Jaaz Catterall | C144: 33:27.0 | D144: 2015
A145: 140 | B145: Dillon Jaghory | C145: 33:28.0 | D145: 2014
A146: 141 | B146: Jonathan Alsip | C146: 33:28.0 | D146: 2017
A147: 142 | B147: Ryan Hunt | C147: 33:40.2 | D147: 2015
A148: 143 | B148: Chris Porco | C148: 33:45.0 | D148: 2016
A149: 144 | B149: Austin Coha | C149: 33:46.3 | D149: 2017
A150: 145 | B150: Ben Mostiler | C150: 33:47.6 | D150: 2018
A151: 146 | B151: Douglas Heine | C151: 33:55.2 | D151: 2018
A152: 147 | B152: Josh Horton | C152: 34:11.0 | D152: 2012
A153: 148 | B153: Aaron Slater | C153: 34:13.9 | D153: 2015
A154: =A153+1 -> 149 | B154: Matthew Eichstaedt | C154: 34:16.0 | D154: 2016
A155: 150 | B155: Jack Walton | C155: 34:40.9 | D155: 2014
A156: 151 | B156: Reagan Stowell | C156: 34:49.9 | D156: 2014
A157: =A156+1 -> 152 | B157: Cody Zorn | C157: 34:50.0 | D157: 2016
A158: 153 | B158: Eric Hyames | C158: 34:54.4 | D158: 2017
A159: 154 | B159: Colin Callahan | C159: 35:09.9 | D159: 2017
A160: 155 | B160: Jalen Hatcher | C160: 35:14.0 | D160: 2014
A161: 156 | B161: Jacob Leiweber | C161: 35:14.2 | D161: 2014
A162: 157 | B162: Josh Noorily | C162: 35:18.4 | D162: 2017
A163: 158 | B163: Karl Havens | C163: 35:23.1 | D163: 2018
A164: 159 | B164: Jack Spehn | C164: 35:31.2 | D164: 2016
A165: 160 | B165: Go Takei | C165: 35:42.0 | D165: 2012
A166: =A165+1 -> 161 | B166: Shane McVeigh | C166: 35:44.1 | D166: 2017
A167: 162 | B167: Damon Plasencia | C167: 35:44.5 | D167: 2015
A168: 163 | B168: James Teuber | C168: 35:48.0 | D168: 2017
A169: 164 | B169: Michael Kincaid | C169: 36:05.0 | D169: 2013
A170: 165 | B170: Nick Kilpatrick | C170: 36:17.7 | D170: 2017
A171: 166 | B171: Cole Showers | C171: 35:19.8 | D171: 2018
A172: 167 | B172: Nate Zelent | C172: 36:47.6 | D172: 2016
A173: 168 | B173: Jaden Vaught | C173: 36:50.0 | D173: 2016
A174: 169 | B174: Cody Lange | C174: 37:08.0 | D174: 2014
A175: 170 | B175: Hunter Hall | C175: 37:14.6 | D175: 2017
A176: 171 | B176: Ryan Cohn | C176: 37:17.0 | D176: 2012
A177: 172 | B177: Charles Connell | C177: 37:25.6 | D177: 2015
A178: 173 | B178: Michael Vorwald | C178: 37:58.8 | D178: 2017
A179: 174 | B179: Al Shoopman | C179: 38:16.0 | D179: 2016
A180: 175 | B180: Kyle White | C180: 38:41.0 | D180: 2017
A181: 176 | B181: Alex Noffsinger | C181: 38:41.0 | D181: 2016
A182: 177 | B182: Ethan Heilman | C182: 40.16.0 | D182: 2018
A183: 178 | B183: Nicholas Keller | C183: 42:07.5 | D183: 2014
A184: 179 | B184: Jacob Little | C184: 44:02.9 | D184: 2017

Sheet 5K
A1: Only races on the schedule run as a member of the MSU Running Club are eligible for records.
A2: ALL-TIME 5K
A3: Rank | C3: Time | D3: Year
B4: Charles Alexander | C4: 15:38.96 | D4: 2018
A5: =1 -> 1 | B5: Paolo Guarano | C5: 15:56.7 | D5: 2017
A6: =A5+1 -> 2 | B6: Bennett Prud'homme | C6: 15:59:00 | D6: 2012
A7: 3 | B7: Colin Riley | C7: 16:02:00 | D7: 2014
A8: 4 | B8: Kevin Glime | C8: 16:06:00 | D8: 2012
A9: 5 | B9: Adam Terwillegar | C9: 16:14:00 | D9: 2014
A10: 6 | B10: Billy Brinker | C10: 16:21.14 | D10: 2018
A11: 7 | B11: Christian Heck | C11: 16:23:00 | D11: 2007
A12: 8 | B12: Justin Jones | C12: 16:24:00 | D12: 2009
A13: 9 | B13: Justin Waraniak | C13: 16:24:00 | D13: 2015
A14: =A13+1 -> 10 | B14: Lucas Werner | C14: 16:24.5 | D14: 2017
A15: 11 | B15: Riley VanPelt | C15: 16:29.3 | D15: 2017
A16: 12 | B16: Eric Loveland | C16: 16:30:00 | D16: 2011
A17: 13 | B17: Garrett Novak | C17: 16:31.0 | D17: 2017
A18: 14 | B18: Jacob Young | C18: 16:32.0 | D18: 2016
A19: 15 | B19: Paul Salach | C19: 16:44.0 | D19: 2016
A20: 16 | B20: Jeff Girbach | C20: 16:44:00 | D20: 2012
A21: 17 | B21: Mitchell Lanzit | C21: 16:44.78 | D21: 2018
A22: 18 | B22: Adam Izer | C22: 16:51:00 | D22: 2009
A23: 19 | B23: Mark Choate | C23: 16:52:00 | D23: 2014
A24: =A23+1 -> 20 | B24: Sean Baddeley | C24: 16:59:00 | D24: 2010
A25: 21 | B25: John Wilson | C25: 17:03:00 | D25: 2006
A26: 22 | B26: Damon King | C26: 17:06:00 | D26: 2009
A27: 23 | B27: Alex Miros | C27: 17:10:00 | D27: 2014
A28: 24 | B28: Connor Doyle | C28: 17:10:00 | D28: 2011
A29: 25 | B29: Austin Langlinais | C29: 17:12.6 | D29: 2017
A30: 26 | B30: Wes Diener | C30: 17:15.0 | D30: 2016
A31: 27 | B31: Ben Lambert | C31: 17:20:00 | D31: 2014
A32: 28 | B32: Trent Johnson | C32: 17:20:00 | D32: 2013
A33: 29 | B33: Ben Richardson | C33: 17:24:00 | D33: 2014
A34: 30 | B34: Eric Sundberg | C34: 17:24:00 | D34: 2007
A35: 31 | B35: Lucas Werner | C35: 17:24:00 | D35: 2015
A36: 32 | B36: Nathaniel Ellsworth | C36: 17:25:00 | D36: 2010
A37: 33 | B37: Alex Michaels | C37: 17:26:00 | D37: 2006
A38: 34 | B38: Andy VanEgmond | C38: 17:28:00 | D38: 2007
A39: 35 | B39: Joe Hegger | C39: 17:29.0 | D39: 2016
A40: 36 | B40: Brendan Murphy | C40: 17:29:00 | D40: 2010
A41: 37 | B41: Geoff Giese | C41: 17:30:00 | D41: 2014
A42: 38 | B42: Eddie Roginski | C42: 17:33:00 | D42: 2009
A43: 39 | B43: Korey Carter | C43: 17:33:00 | D43: 2007
A44: 40 | B44: Ryan Whinnery | C44: 17:34.24 | D44: 2018
A45: 41 | B45: Thomas Brettschneider | C45: 17:35:00 | D45: 2015
A46: 42 | B46: Eric Anderson | C46: 17:37:00 | D46: 2011
A47: =A46+1 -> 43 | B47: Nathan Blosser | C47: 17:37:00 | D47: 2015
A48: 44 | B48: Connor Lockman | C48: 17:39:00 | D48: 2014
A49: 45 | B49: Ian Murphy | C49: 17:40:00 | D49: 2010
A50: 46 | B50: Wes Diener | C50: 17:40:00 | D50: 2015
A51: 47 | B51: Lucas Bowman | C51: 17:46:00 | D51: 2015
A52: 48 | B52: Phil Baeza | C52: 17:49:00 | D52: 2013
A53: 49 | B53: Chase Taylor | C53: 17:50:00 | D53: 2012
A54: 50 | B54: Mike Jaisle | C54: 17:50:00 | D54: 2011
A55: 51 | B55: Robert Gernhardt | C55: 17:51:00 | D55: 2012
A56: 52 | B56: Jake Wojnicki | C56: 17:52:00 | D56: 2014
A57: 53 | B57: Tim Athans | C57: 17:53:00 | D57: 2012
A58: 54 | B58: Brady Ryan | C58: 17:54:00 | D58: 2012
A59: 55 | B59: Pat Frahm | C59: 17:54:00 | D59: 2014
A60: 56 | B60: Ben Fleck | C60: 17:55:00 | D60: 2012
A61: 57 | B61: Vicente Herrara | C61: 17:58:00 | D61: 2013
A62: 58 | B62: Justin Schenkel | C62: 18:01:00 | D62: 2007
A63: 59 | B63: Ryan Canna | C63: 18:03.0 | D63: 2016
A64: 60 | B64: Jacob Broman | C64: 18:04.5 | D64: 2016
A65: 61 | B65: Anthony Mattioli | C65: 18:07:00 | D65: 2012
A66: 62 | B66: Brady Durant | C66: 18:07:00 | D66: 2012
A67: 63 | B67: Jacob Paciorek | C67: 18:10:00 | D67: 2015
A68: 64 | B68: Jake Belknap | C68: 18:17:00 | D68: 2007
A69: 65 | B69: Daniel Brickley | C69: 18:23:00 | D69: 2012
A70: 66 | B70: Ryan Squanda | C70: 18:26:00 | D70: 2012
A71: 67 | B71: Jared Babcock | C71: 18:28.0 | D71: 2016
A72: 68 | B72: Jack Adams | C72: 18:32.5 | D72: 2016
A73: 69 | B73: Michael Rettschlag | C73: 18:32.56 | D73: 2018
A74: 70 | B74: Dylan Reiners | C74: 18:32:00 | D74: 2012
A75: 71 | B75: Jonathan Sollish | C75: 18:33:00 | D75: 2014
A76: =A75+1 -> 72 | B76: Louis Glinzak | C76: 18:35:00 | D76: 2007
A77: 73 | B77: Jack Adams | C77: 18:37:00 | D77: 2015
A78: 74 | B78: Josh Klebba | C78: 18:37:00 | D78: 2012
A79: 75 | B79: Ryan Grotenrath | C79: 18:39.0 | D79: 2016
A80: 76 | B80: Logan Coles | C80: 18:39.1 | D80: 2017
A81: 77 | B81: Phil Baeza | C81: 18:40.0 | D81: 2016
A82: 78 | B82: Adam Blaida | C82: 18:42.0 | D82: 2016
A83: 79 | B83: Cory Madaj | C83: 18:46:00 | D83: 2012
A84: 80 | B84: Sean Flanaagn | C84: 18:48:00 | D84: 2015
A85: 81 | B85: Logan Soldo | C85: 18:52:00 | D85: 2014
A86: 82 | B86: Thies Ey | C86: 18:52:00 | D86: 2015
A87: 83 | B87: Michael Brichta | C87: 18:55:00 | D87: 2012
A88: 84 | B88: Christopher Snow | C88: 18:57:00 | D88: 2014
A89: 85 | B89: Brendan Lienau | C89: 19:00.0 | D89: 2016
A90: 86 | B90: Jack Walton | C90: 19:01:00 | D90: 2014
A91: 87 | B91: Tom Brettschneider | C91: 19:02.0 | D91: 2016
A92: 88 | B92: Eric Hyames | C92: 19:02:00 | D92: 2015
A93: 89 | B93: Benjamin Iaderosa | C93: 19:05:00 | D93: 2015
A94: 90 | B94: Timmy Christensen | C94: 19:07:00 | D94: 2013
A95: 91 | B95: Simon Zagata | C95: 19:21:00 | D95: 2012
A96: 92 | B96: Tyler Cook | C96: 19:22.0 | D96: 2016
A97: 93 | B97: Jacob Leinweber | C97: 19:23:00 | D97: 2014
A98: 94 | B98: Jake McGuigan | C98: 19:23.24 | D98: 2018
A99: 95 | B99: Steven Smith | C99: 19:24:00 | D99: 2015
A100: 96 | B100: Bram Parkinson | C100: 19:25:00 | D100: 2015
A101: =A100+1 -> 97 | B101: Tyler Gasper | C101: 19:27:00 | D101: 2015
A102: 98 | B102: Ian Fox | C102: 19:28.36 | D102: 2018
A103: 99 | B103: Al Shoopman | C103: 19:36:00 | D103: 2015
A104: 100 | B104: Owen Purdue | C104: 19:37.0 | D104: 2016
A105: =A104+1 -> 101 | B105: Reagon stowell | C105: 19:37:00 | D105: 2014
A106: 102 | B106: Joel Simpson | C106: 19:40:00 | D106: 2014
A107: 103 | B107: Tommy McGowan | C107: 19:50.96 | D107: 2018
A108: 104 | B108: Austin Katona | C108: 19:52:00 | D108: 2013
A109: 105 | B109: Kristian Wosik | C109: 19:53:00 | D109: 2013
A110: =A109+1 -> 106 | B110: Sean Virden | C110: 19:54:00 | D110: 2015
A111: 107 | B111: Gabe VanHollebeke | C111: 19:54:00 | D111: 2015
A112: 108 | B112: Mitchell Smith | C112: 19:57.0 | D112: 2016
A113: 109 | B113: David Bidwell | C113: 19:58.5 | D113: 2016
A114: 110 | B114: TJ Krawczyk | C114: 20:06.9 | D114: 2017
A115: 111 | B115: Phillip Hinkel | C115: 20:13:00 | D115: 2012
A116: 112 | B116: Mitchell Lindstrom | C116: 20:14:00 | D116: 2014
A117: 113 | B117: Peter Sculli | C117: 20:19:00 | D117: 2015
A118: 114 | B118: Dillon Jaghory | C118: 20:23:00 | D118: 2014
A119: 115 | B119: Ethan Smith | C119: 20:28.50 | D119: 2018
A120: 116 | B120: Avcioglu Rafael | C120: 20:30:00 | D120: 2015
A121: 117 | B121: Damon Plasencia | C121: 20:34:00 | D121: 2014
A122: =A121+1 -> 118 | B122: Ryan Darnell | C122: 20:38.7 | D122: 2017
A123: 119 | B123: Matthew Eichstaedt | C123: 20:52.0 | D123: 2016
A124: 120 | B124: Ryan Hunt | C124: 20:55:00 | D124: 2015
A125: 121 | B125: Dean Kuharevicz | C125: 20:56.0 | D125: 2016
A126: 122 | B126: Douglas Heine | C126: 21:03.02 | D126: 2018
A127: 123 | B127: Charles Connell | C127: 21:11:00 | D127: 2015
A128: 124 | B128: Marc VandenBerg | C128: 21:13.0 | D128: 2016
A129: 125 | B129: Ben Mostiler | C129: 21:16.64 | D129: 2018
A130: 126 | B130: Kory Stamper | C130: 21:29:00 | D130: 2013
A131: 127 | B131: Alex Noffsinger | C131: 21:31.0 | D131: 2016
A132: 128 | B132: Cole Showers | C132: 21:31.89 | D132: 2018
A133: 129 | B133: Erik Heckel | C133: 21:50.1 | D133: 2016
A134: 130 | B134: Austin Lints | C134: 22:06:00 | D134: 2014
A135: 131 | B135: Michael Kincaid | C135: 22:24:00 | D135: 2013
A136: =A135+1 -> 132 | B136: Cody Zorn | C136: 23:04.0 | D136: 2016
A137: 133 | B137: David Pearson | C137: 23:28.0 | D137: 2016
A138: 134 | B138: Josh Kornaga | C138: 1.019444444 | D138: 2015
A139: 135 | B139: Nicholas Keller | C139: 1.027083333 | D139: 2014
A140: 136 | B140: Devin McClenton | C140: 26:13.0 | D140: 2016
A141: 137 | B141: Cody Lange | C141: 1.146527778 | D141: 2013
